[Event "Live Chess"]
[Site "Chess.com"]
[Date "2024.06.02"]
[Round "-"]
[White "AlanBstard10"]
[Black "booktrunk"]
[Result "1-0"]
[WhiteElo "1191"]
[BlackElo "1507"]
[TimeControl "300"]
[EndTime "0:25:14 PDT"]
[Termination "AlanBstard10 won on time"]

1. b4 {[%clk 0:04:57.4]} 1... e6 {[%clk 0:04:56.7]} 2. Bb2 {[%clk 0:04:55.5]}
2... Nf6 {[%clk 0:04:46.9]} 3. a3 {[%clk 0:04:51.4]} 3... a5 {[%clk 0:04:44.2]}
4. e3 {[%clk 0:04:40.8]} 4... axb4 {[%clk 0:04:41.9]} 5. axb4 {[%clk 0:04:39.3]}
5... Rxa1 {[%clk 0:04:40.3]} 6. Bxa1 {[%clk 0:04:38.7]} 6... Bxb4 {[%clk
0:04:39]} 7. c3 {[%clk 0:04:35.9]} 7... Be7 {[%clk 0:04:36.8]} 8. Be2 {[%clk
0:04:34.5]} 8... O-O {[%clk 0:04:35.4]} 9. Bb2 {[%clk 0:04:33.6]} 9... d5 {[%clk
0:04:32.1]} 10. Nf3 {[%clk 0:04:32.7]} 10... Bd6 {[%clk 0:04:28.3]} 11. O-O
{[%clk 0:04:31.3]} 11... Bd7 {[%clk 0:04:26.7]} 12. d4 {[%clk 0:04:30.4]} 12...
Nc6 {[%clk 0:04:24]} 13. Nbd2 {[%clk 0:04:29.1]} 13... Qe7 {[%clk 0:04:19.3]}
14. Qb3 {[%clk 0:04:25.2]} 14... b6 {[%clk 0:04:15.4]} 15. Bb5 {[%clk
0:04:19.3]} 15... Na5 {[%clk 0:04:12.1]} 16. Qa4 {[%clk 0:04:10.9]} 16... Bxb5
{[%clk 0:04:09.8]} 17. Qxb5 {[%clk 0:04:10]} 17... Ra8 {[%clk 0:04:06.5]} 18.
Ra1 {[%clk 0:04:04.4]} 18... Ne4 {[%clk 0:04:03.5]} 19. Nxe4 {[%clk 0:04:02.4]}
19... dxe4 {[%clk 0:04:01.8]} 20. Nd2 {[%clk 0:03:52.1]} 20... Qe8 {[%clk
0:03:54.5]} 21. Qxe8+ {[%clk 0:03:49.7]} 21... Rxe8 {[%clk 0:03:51.9]} 22. f3
{[%clk 0:03:42.1]} 22... exf3 {[%clk 0:03:49.3]} 23. Nxf3 {[%clk 0:03:41.3]}
23... Nc4 {[%clk 0:03:46.9]} 24. Bc1 {[%clk 0:03:28.6]} 24... f6 {[%clk
0:03:42.7]} 25. Ra7 {[%clk 0:03:26.1]} 25... Na5 {[%clk 0:03:34.3]} 26. Kf2
{[%clk 0:03:22.7]} 26... Nb3 {[%clk 0:03:32.6]} 27. Bb2 {[%clk 0:03:17.8]} 27...
h6 {[%clk 0:03:28.6]} 28. Ke2 {[%clk 0:03:15.3]} 28... c5 {[%clk 0:03:24.8]} 29.
dxc5 {[%clk 0:03:13.1]} 29... Nxc5 {[%clk 0:03:20.6]} 30. g3 {[%clk 0:03:04.2]}
30... Ne4 {[%clk 0:03:17.7]} 31. Rb7 {[%clk 0:02:51.7]} 31... Bc5 {[%clk
0:03:15]} 32. Nd4 {[%clk 0:02:45.9]} 32... Nd6 {[%clk 0:03:07.8]} 33. Rd7 {[%clk
0:02:38]} 33... Nc4 {[%clk 0:02:59.1]} 34. Bc1 {[%clk 0:02:31.6]} 34... e5
{[%clk 0:02:56.2]} 35. Nb5 {[%clk 0:02:09.8]} 35... Kh7 {[%clk 0:02:43.7]} 36.
Bd2 {[%clk 0:02:01]} 36... Nxd2 {[%clk 0:02:40.6]} 37. Rxd2 {[%clk 0:01:59.9]}
37... Re6 {[%clk 0:02:35.8]} 38. Nc7 {[%clk 0:01:55.1]} 38... Rc6 {[%clk
0:02:33.5]} 39. Nb5 {[%clk 0:01:51.1]} 39... Kg6 {[%clk 0:02:28.3]} 40. Rd7
{[%clk 0:01:44.3]} 40... h5 {[%clk 0:02:25.4]} 41. Kf3 {[%clk 0:01:39.2]} 41...
Bf8 {[%clk 0:02:14.7]} 42. Rd8 {[%clk 0:01:37.7]} 42... Be7 {[%clk 0:02:12.5]}
43. Re8 {[%clk 0:01:35.8]} 43... Bc5 {[%clk 0:02:09.4]} 44. Na7 {[%clk
0:01:30.3]} 44... Rc7 {[%clk 0:02:05.1]} 45. Nb5 {[%clk 0:01:28]} 45... Rb7
{[%clk 0:02:01.3]} 46. c4 {[%clk 0:01:26.7]} 46... Bb4 {[%clk 0:01:56.7]} 47.
Rc8 {[%clk 0:01:18.9]} 47... Kh6 {[%clk 0:01:47.3]} 48. Rd8 {[%clk 0:01:15.3]}
48... Kg5 {[%clk 0:01:41.1]} 49. Nd6 {[%clk 0:01:08.8]} 49... Rc7 {[%clk
0:01:34.9]} 50. Ne4+ {[%clk 0:00:56.6]} 50... Kg6 {[%clk 0:01:31.9]} 51. Rb8
{[%clk 0:00:47.7]} 51... Rc6 {[%clk 0:01:20.3]} 52. Rb7 {[%clk 0:00:42.2]} 52...
Ba5 {[%clk 0:01:16.5]} 53. c5 {[%clk 0:00:39.4]} 53... bxc5 {[%clk 0:01:12.7]}
54. Rb5 {[%clk 0:00:36.8]} 54... Bb6 {[%clk 0:00:56.8]} 55. Nd2 {[%clk
0:00:31.1]} 55... c4 {[%clk 0:00:55.1]} 56. Nxc4 {[%clk 0:00:26]} 56... Rxc4
{[%clk 0:00:50.3]} 57. Rxb6 {[%clk 0:00:25.3]} 57... Rc1 {[%clk 0:00:47.4]} 58.
Kg2 {[%clk 0:00:23.8]} 58... Rc2+ {[%clk 0:00:45.8]} 59. Kh1 {[%clk 0:00:21.1]}
59... Kf5 {[%clk 0:00:40.2]} 60. Rb3 {[%clk 0:00:18.9]} 60... g5 {[%clk
0:00:37.4]} 61. Kg1 {[%clk 0:00:18.3]} 61... g4 {[%clk 0:00:34.1]} 62. Kh1
{[%clk 0:00:16.8]} 62... Re2 {[%clk 0:00:32]} 63. Kg1 {[%clk 0:00:15.6]} 63...
Ke4 {[%clk 0:00:30.2]} 64. Kf1 {[%clk 0:00:14.5]} 64... Rxe3 {[%clk 0:00:28.2]}
65. Rb6 {[%clk 0:00:12.8]} 65... Rf3+ {[%clk 0:00:24.9]} 66. Kg2 {[%clk
0:00:11.5]} 66... Kf5 {[%clk 0:00:23.4]} 67. Rb8 {[%clk 0:00:10.4]} 67... Rd3
{[%clk 0:00:19.6]} 68. Rh8 {[%clk 0:00:08.6]} 68... Rd2+ {[%clk 0:00:17.7]} 69.
Kg1 {[%clk 0:00:07.2]} 69... Kg5 {[%clk 0:00:16.6]} 70. Rf8 {[%clk 0:00:06.1]}
70... h4 {[%clk 0:00:14.6]} 71. Rg8+ {[%clk 0:00:05.2]} 71... Kh5 {[%clk
0:00:12.2]} 72. gxh4 {[%clk 0:00:04.5]} 72... Kxh4 {[%clk 0:00:10.5]} 73. Rh8+
{[%clk 0:00:04.2]} 73... Kg5 {[%clk 0:00:08.5]} 74. Rg8+ {[%clk 0:00:03.8]}
74... Kf4 {[%clk 0:00:06.9]} 75. Rf8 {[%clk 0:00:03.2]} 75... f5 {[%clk
0:00:05.9]} 76. Re8 {[%clk 0:00:02.4]} 76... e4 {[%clk 0:00:04.8]} 77. Rd8
{[%clk 0:00:01.3]} 1-0

[Event "Live Chess"]
[Site "Chess.com"]
[Date "2024.06.02"]
[Round "-"]
[White "peteopeteo"]
[Black "GerardATHart"]
[Result "0-1"]
[WhiteElo "1540"]
[BlackElo "1389"]
[TimeControl "300"]
[EndTime "0:25:22 PDT"]
[Termination "GerardATHart won by checkmate"]

1. e4 {[%clk 0:04:59.1]} 1... e5 {[%clk 0:04:57.8]} 2. Nf3 {[%clk 0:04:58.2]}
2... Nc6 {[%clk 0:04:56]} 3. Bc4 {[%clk 0:04:57.5]} 3... Nf6 {[%clk 0:04:54.3]}
4. d3 {[%clk 0:04:46.7]} 4... Bc5 {[%clk 0:04:52]} 5. O-O {[%clk 0:04:45.6]}
5... d6 {[%clk 0:04:50.5]} 6. c3 {[%clk 0:04:44]} 6... Bg4 {[%clk 0:04:48.1]} 7.
Nbd2 {[%clk 0:04:42.4]} 7... Qd7 {[%clk 0:04:44.7]} 8. b4 {[%clk 0:04:36.9]}
8... Bb6 {[%clk 0:04:42.4]} 9. Qb3 {[%clk 0:04:36.3]} 9... Bh5 {[%clk
0:04:39.1]} 10. Bb2 {[%clk 0:04:17.7]} 10... O-O-O {[%clk 0:04:35.4]} 11. a4
{[%clk 0:04:05.8]} 11... a5 {[%clk 0:04:30.7]} 12. b5 {[%clk 0:03:59.9]} 12...
Nb8 {[%clk 0:04:15.6]} 13. d4 {[%clk 0:03:52.1]} 13... Qe7 {[%clk 0:04:10.6]}
14. Ne1 {[%clk 0:03:22.3]} 14... Nbd7 {[%clk 0:04:07.4]} 15. Nd3 {[%clk
0:03:19.1]} 15... Rdg8 {[%clk 0:03:39]} 16. Ba3 {[%clk 0:02:56]} 16... g5 {[%clk
0:03:30.1]} 17. dxe5 {[%clk 0:02:53.7]} 17... Nxe5 {[%clk 0:03:02.6]} 18. Nxe5
{[%clk 0:02:48.3]} 18... Qxe5 {[%clk 0:03:00.8]} 19. Bxf7 {[%clk 0:02:42.3]}
19... Bxf7 {[%clk 0:02:58.3]} 20. Qxf7 {[%clk 0:02:42.2]} 20... Rf8 {[%clk
0:02:47]} 21. Qc4 {[%clk 0:02:33.7]} 21... Ng4 {[%clk 0:02:42.8]} 22. Nf3 {[%clk
0:02:18.3]} 22... Rxf3 {[%clk 0:02:35.2]} 23. gxf3 {[%clk 0:02:13.3]} 23...
Qxh2# {[%clk 0:02:33.3]} 0-1

[Event "Live Chess"]
[Site "Chess.com"]
[Date "2024.06.02"]
[Round "-"]
[White "Duke_of_Bebington"]
[Black "juniortay"]
[Result "0-1"]
[WhiteElo "1696"]
[BlackElo "2380"]
[TimeControl "300"]
[EndTime "0:25:55 PDT"]
[Termination "juniortay won by resignation"]

1. e4 {[%clk 0:04:58.1]} 1... e5 {[%clk 0:04:58.8]} 2. Nf3 {[%clk 0:04:57.2]}
2... Nf6 {[%clk 0:04:57.8]} 3. Nxe5 {[%clk 0:04:51]} 3... Nc6 {[%clk 0:04:56.5]}
4. Nxc6 {[%clk 0:04:47.8]} 4... dxc6 {[%clk 0:04:55.1]} 5. Nc3 {[%clk
0:04:45.4]} 5... Bc5 {[%clk 0:04:53.3]} 6. d3 {[%clk 0:04:41.3]} 6... Ng4 {[%clk
0:04:52]} 7. f3 {[%clk 0:04:23.9]} 7... Nf2 {[%clk 0:04:50.6]} 8. Qe2 {[%clk
0:04:18.2]} 8... Nxh1 {[%clk 0:04:49.3]} 9. Be3 {[%clk 0:04:11.2]} 9... Bxe3
{[%clk 0:04:46.8]} 10. Qxe3 {[%clk 0:04:11.1]} 10... Qh4+ {[%clk 0:04:44]} 11.
Ke2 {[%clk 0:04:05.8]} 11... Qxh2 {[%clk 0:04:40.3]} 0-1

[Event "Live Chess"]
[Site "Chess.com"]
[Date "2024.06.02"]
[Round "-"]
[White "McFim"]
[Black "CheckThis4"]
[Result "0-1"]
[WhiteElo "1700"]
[BlackElo "2693"]
[TimeControl "300"]
[EndTime "0:26:04 PDT"]
[Termination "CheckThis4 won on time"]

1. e4 {[%clk 0:04:54.8]} 1... d5 {[%clk 0:04:53.3]} 2. exd5 {[%clk 0:04:52.9]}
2... c6 {[%clk 0:04:52.3]} 3. dxc6 {[%clk 0:04:49.6]} 3... Nxc6 {[%clk
0:04:52.2]} 4. Nc3 {[%clk 0:04:48.2]} 4... e5 {[%clk 0:04:50.2]} 5. Bc4 {[%clk
0:04:44.2]} 5... Nf6 {[%clk 0:04:47.1]} 6. d3 {[%clk 0:04:42]} 6... Bg4 {[%clk
0:04:41]} 7. f3 {[%clk 0:04:40.1]} 7... Bh5 {[%clk 0:04:30.8]} 8. a3 {[%clk
0:04:34.5]} 8... Bc5 {[%clk 0:04:28.9]} 9. Nge2 {[%clk 0:04:30.3]} 9... O-O
{[%clk 0:04:24.5]} 10. Ng3 {[%clk 0:04:28.1]} 10... Bg6 {[%clk 0:04:22.6]} 11.
Nge4 {[%clk 0:04:21.9]} 11... Nxe4 {[%clk 0:04:15.4]} 12. dxe4 {[%clk 0:04:16]}
12... Qh4+ {[%clk 0:04:07.3]} 13. g3 {[%clk 0:04:10.3]} 13... Qh3 {[%clk
0:04:05.7]} 14. Bf1 {[%clk 0:03:35.9]} 14... Qe6 {[%clk 0:04:02.3]} 15. Bd3
{[%clk 0:03:26]} 15... Rad8 {[%clk 0:03:55.6]} 16. Qe2 {[%clk 0:03:22.6]} 16...
Nd4 {[%clk 0:03:54]} 17. Qg2 {[%clk 0:03:19.5]} 17... f5 {[%clk 0:03:50.4]} 18.
Rf1 {[%clk 0:03:01.9]} 18... fxe4 {[%clk 0:03:44.9]} 19. Nxe4 {[%clk 0:02:53.1]}
19... Bb6 {[%clk 0:03:30]} 20. Bd2 {[%clk 0:02:39.4]} 20... Rc8 {[%clk
0:03:25.3]} 21. Bc3 {[%clk 0:02:26.7]} 21... Kh8 {[%clk 0:03:10]} 22. Bxd4
{[%clk 0:01:23.6]} 22... Bxd4 {[%clk 0:03:06.1]} 23. c3 {[%clk 0:01:21.8]} 23...
Bb6 {[%clk 0:02:29]} 24. Qe2 {[%clk 0:01:18.5]} 24... Rfd8 {[%clk 0:02:16.7]}
25. Rd1 {[%clk 0:01:15.1]} 25... h6 {[%clk 0:02:04.2]} 26. h4 {[%clk 0:01:04.9]}
26... Bh7 {[%clk 0:02:00.2]} 27. g4 {[%clk 0:00:59.9]} 27... Rd7 {[%clk
0:01:49.1]} 28. Rh1 {[%clk 0:00:55.8]} 28... Rcd8 {[%clk 0:01:47]} 29. Bc2
{[%clk 0:00:26.8]} 29... Qa2 {[%clk 0:01:30.4]} 30. Rxd7 {[%clk 0:00:23]} 30...
Rxd7 {[%clk 0:01:30.3]} 31. Bd1 {[%clk 0:00:16.8]} 31... Qb1 {[%clk 0:01:22.9]}
32. g5 {[%clk 0:00:14]} 32... Bxe4 {[%clk 0:01:08.3]} 33. fxe4 {[%clk
0:00:11.1]} 33... Rxd1+ {[%clk 0:01:07.3]} 34. Qxd1 {[%clk 0:00:08.1]} 34...
Qxe4+ {[%clk 0:01:07]} 35. Qe2 {[%clk 0:00:03.8]} 35... Qxh1+ {[%clk 0:01:05.5]}
36. Kd2 {[%clk 0:00:02.7]} 36... Qd5+ {[%clk 0:01:03]} 37. Kc2 {[%clk
0:00:01.3]} 37... e4 {[%clk 0:00:58.8]} 0-1

[Event "Live Chess"]
[Site "Chess.com"]
[Date "2024.06.02"]
[Round "-"]
[White "Victor_Bondar"]
[Black "willc-h99"]
[Result "0-1"]
[WhiteElo "1460"]
[BlackElo "2627"]
[TimeControl "300"]
[EndTime "0:26:10 PDT"]
[Termination "willc-h99 won by resignation"]

1. e4 {[%clk 0:04:56.8]} 1... c6 {[%clk 0:04:57.6]} 2. d4 {[%clk 0:04:55]} 2...
d5 {[%clk 0:04:56.6]} 3. Nd2 {[%clk 0:04:54.1]} 3... dxe4 {[%clk 0:04:55.2]} 4.
Nxe4 {[%clk 0:04:53.2]} 4... Nf6 {[%clk 0:04:54.9]} 5. Ng3 {[%clk 0:04:51.9]}
5... e5 {[%clk 0:04:45.7]} 6. Bg5 {[%clk 0:04:49.1]} 6... exd4 {[%clk
0:04:29.7]} 7. Bxf6 {[%clk 0:04:47]} 7... Qxf6 {[%clk 0:04:28.4]} 8. Nf3 {[%clk
0:04:36.3]} 8... Bb4+ {[%clk 0:04:25.5]} 9. Nd2 {[%clk 0:04:20.5]} 9... O-O
{[%clk 0:04:22.5]} 10. Be2 {[%clk 0:04:19.3]} 10... Qh6 {[%clk 0:04:08.1]} 11.
a3 {[%clk 0:04:15.2]} 11... Ba5 {[%clk 0:04:02]} 12. b4 {[%clk 0:04:14.2]} 12...
Bb6 {[%clk 0:03:52.7]} 13. O-O {[%clk 0:04:11]} 13... Be6 {[%clk 0:03:46.7]} 14.
Nc4 {[%clk 0:04:08.5]} 14... Rd8 {[%clk 0:03:36.2]} 15. Bd3 {[%clk 0:03:47.6]}
15... Nd7 {[%clk 0:03:33]} 16. Nxb6 {[%clk 0:03:46.2]} 16... axb6 {[%clk
0:03:29.1]} 17. Qh5 {[%clk 0:03:37]} 17... Qxh5 {[%clk 0:03:25.9]} 18. Nxh5
{[%clk 0:03:35.7]} 18... c5 {[%clk 0:03:24.9]} 19. f4 {[%clk 0:03:26.6]} 19...
Bd5 {[%clk 0:03:13.5]} 20. f5 {[%clk 0:03:19.8]} 20... c4 {[%clk 0:03:05.9]} 21.
Be2 {[%clk 0:03:15]} 21... b5 {[%clk 0:03:04.2]} 22. f6 {[%clk 0:03:05.5]} 22...
Nxf6 {[%clk 0:02:53.5]} 23. Nxf6+ {[%clk 0:03:04.2]} 23... gxf6 {[%clk
0:02:52.4]} 24. Rxf6 {[%clk 0:03:02.3]} 24... Be4 {[%clk 0:02:51.5]} 25. Bh5
{[%clk 0:02:56.2]} 25... Rd7 {[%clk 0:02:39.3]} 26. Raf1 {[%clk 0:02:50.8]}
26... Bg6 {[%clk 0:02:33.3]} 27. Bxg6 {[%clk 0:02:49.3]} 27... hxg6 {[%clk
0:02:31.9]} 28. R6f3 {[%clk 0:02:32.5]} 28... d3 {[%clk 0:02:30]} 29. cxd3
{[%clk 0:02:31.1]} 29... cxd3 {[%clk 0:02:29]} 30. Rd1 {[%clk 0:02:23.2]} 30...
Rxa3 {[%clk 0:02:27.6]} 31. h4 {[%clk 0:02:20.1]} 31... Kg7 {[%clk 0:02:24.3]}
32. g4 {[%clk 0:02:12.3]} 32... Rb3 {[%clk 0:02:22.9]} 33. h5 {[%clk 0:02:11]}
33... Rxb4 {[%clk 0:02:21.1]} 34. hxg6 {[%clk 0:02:09.5]} 34... Rxg4+ {[%clk
0:02:16.4]} 35. Kf2 {[%clk 0:02:08.6]} 35... Rxg6 {[%clk 0:02:10.3]} 36. Rfxd3
{[%clk 0:02:07.8]} 36... Rxd3 {[%clk 0:02:05.5]} 37. Rxd3 {[%clk 0:02:06.9]}
37... b4 {[%clk 0:02:02.8]} 38. Rb3 {[%clk 0:02:02.2]} 38... Rg4 {[%clk
0:01:57.8]} 39. Kf3 {[%clk 0:02:01.5]} 39... Rc4 {[%clk 0:01:56.7]} 40. Ke2
{[%clk 0:01:56.5]} 40... f5 {[%clk 0:01:53.2]} 41. Kd3 {[%clk 0:01:55.4]} 41...
Rc3+ {[%clk 0:01:51.7]} 42. Rxc3 {[%clk 0:01:54.7]} 42... bxc3 {[%clk
0:01:51.6]} 43. Kxc3 {[%clk 0:01:54]} 43... Kf6 {[%clk 0:01:51.5]} 0-1

[Event "Live Chess"]
[Site "Chess.com"]
[Date "2024.06.02"]
[Round "-"]
[White "SimonBoy1"]
[Black "MaximKovalenko83"]
[Result "0-1"]
[WhiteElo "1530"]
[BlackElo "2149"]
[TimeControl "300"]
[EndTime "0:27:22 PDT"]
[Termination "MaximKovalenko83 won by resignation"]

1. e4 {[%clk 0:04:59.7]} 1... c6 {[%clk 0:04:52.2]} 2. d4 {[%clk 0:04:56.9]}
2... d5 {[%clk 0:04:52.1]} 3. exd5 {[%clk 0:04:56.1]} 3... cxd5 {[%clk
0:04:51.8]} 4. Nf3 {[%clk 0:04:55.7]} 4... Nc6 {[%clk 0:04:51.3]} 5. Bd3 {[%clk
0:04:55.2]} 5... Nf6 {[%clk 0:04:51]} 6. c3 {[%clk 0:04:54.9]} 6... Bg4 {[%clk
0:04:50.3]} 7. O-O {[%clk 0:04:54.5]} 7... e6 {[%clk 0:04:49.5]} 8. Bg5 {[%clk
0:04:53.6]} 8... Be7 {[%clk 0:04:48.1]} 9. Nbd2 {[%clk 0:04:53.1]} 9... Rc8
{[%clk 0:04:46.1]} 10. Rc1 {[%clk 0:04:51.4]} 10... O-O {[%clk 0:04:44.6]} 11.
Qc2 {[%clk 0:04:49.2]} 11... h6 {[%clk 0:04:43.1]} 12. Bh4 {[%clk 0:04:47.7]}
12... Nb4 {[%clk 0:04:39.3]} 13. Qb1 {[%clk 0:04:45.7]} 13... Nxd3 {[%clk
0:04:38.1]} 14. Qxd3 {[%clk 0:04:45.6]} 14... Qb6 {[%clk 0:04:36.2]} 15. b3
{[%clk 0:04:43.6]} 15... Rfe8 {[%clk 0:04:30]} 16. Bg3 {[%clk 0:04:42.3]} 16...
Bf5 {[%clk 0:04:24.7]} 17. Qe2 {[%clk 0:04:33.1]} 17... Ne4 {[%clk 0:04:22.6]}
18. Nxe4 {[%clk 0:04:31.4]} 18... Bxe4 {[%clk 0:04:19.5]} 19. Ne5 {[%clk
0:04:23.8]} 19... Qa5 {[%clk 0:04:10.8]} 20. Rfd1 {[%clk 0:04:17.9]} 20... Rxc3
{[%clk 0:04:06.4]} 21. Rxc3 {[%clk 0:04:15.5]} 21... Qxc3 {[%clk 0:04:04.8]} 22.
Qd2 {[%clk 0:04:03]} 22... Qxd2 {[%clk 0:04:01.4]} 23. Rxd2 {[%clk 0:04:02.9]}
23... Rc8 {[%clk 0:04:00]} 24. h3 {[%clk 0:03:58]} 24... Rc1+ {[%clk 0:03:57.1]}
25. Kh2 {[%clk 0:03:56.7]} 25... Bb4 {[%clk 0:03:55]} 26. Re2 {[%clk 0:03:55]}
26... Bc3 {[%clk 0:03:51.9]} 27. Bf4 {[%clk 0:03:50.4]} 27... Rd1 {[%clk
0:03:46.6]} 28. f3 {[%clk 0:03:40.8]} 28... Bf5 {[%clk 0:03:40.5]} 29. g4 {[%clk
0:03:39.5]} 29... Bb1 {[%clk 0:03:37.2]} 30. a4 {[%clk 0:03:37]} 30... Bxd4
{[%clk 0:03:35.6]} 31. Nd7 {[%clk 0:03:32]} 31... f6 {[%clk 0:03:30.4]} 32. Rxe6
{[%clk 0:03:28]} 32... Kf7 {[%clk 0:03:25.8]} 33. Rd6 {[%clk 0:03:21.8]} 33...
g5 {[%clk 0:03:22.6]} 34. Bg3 {[%clk 0:03:20.3]} 34... Ke7 {[%clk 0:03:20.6]}
35. Rxd5 {[%clk 0:03:14.1]} 35... Bg1+ {[%clk 0:03:19.4]} 0-1

[Event "Live Chess"]
[Site "Chess.com"]
[Date "2024.06.02"]
[Round "-"]
[White "elephantgerrald"]
[Black "SavagePawn7"]
[Result "1-0"]
[WhiteElo "823"]
[BlackElo "653"]
[TimeControl "300"]
[EndTime "0:27:36 PDT"]
[Termination "elephantgerrald won on time"]

1. e4 {[%clk 0:04:58]} 1... d5 {[%clk 0:04:57.6]} 2. exd5 {[%clk 0:04:56.6]}
2... Nf6 {[%clk 0:04:55.8]} 3. Nc3 {[%clk 0:04:54.3]} 3... Nxd5 {[%clk
0:04:53.4]} 4. Nxd5 {[%clk 0:04:53.3]} 4... Qxd5 {[%clk 0:04:52.1]} 5. Nf3
{[%clk 0:04:52.6]} 5... Nc6 {[%clk 0:04:50.6]} 6. d4 {[%clk 0:04:51.5]} 6... Nb4
{[%clk 0:04:49]} 7. c4 {[%clk 0:04:43.4]} 7... Qe4+ {[%clk 0:04:45.8]} 8. Be2
{[%clk 0:04:37.5]} 8... Nc2+ {[%clk 0:04:43.9]} 9. Kf1 {[%clk 0:04:31.8]} 9...
Nxa1 {[%clk 0:04:42.1]} 10. Ng5 {[%clk 0:04:25.8]} 10... Qc2 {[%clk 0:04:31.3]}
11. Qe1 {[%clk 0:04:21.7]} 11... h6 {[%clk 0:04:19.1]} 12. Nf3 {[%clk
0:04:03.7]} 12... Bg4 {[%clk 0:04:10.6]} 13. h3 {[%clk 0:03:51.9]} 13... Bxf3
{[%clk 0:04:08]} 14. Bxf3 {[%clk 0:03:49.9]} 14... Qxc4+ {[%clk 0:04:01.9]} 15.
Be2 {[%clk 0:03:47.3]} 15... Qxd4 {[%clk 0:03:55.5]} 16. Bb5+ {[%clk 0:03:44.6]}
16... c6 {[%clk 0:03:53.3]} 17. Be2 {[%clk 0:03:36.3]} 17... Nc2 {[%clk
0:03:45.2]} 18. Qa5 {[%clk 0:03:28.2]} 18... Qb6 {[%clk 0:03:23]} 19. Qc3 {[%clk
0:03:19.5]} 19... Nb4 {[%clk 0:03:12.2]} 20. Qc4 {[%clk 0:03:12.7]} 20... e6
{[%clk 0:02:55.7]} 21. a3 {[%clk 0:03:04.1]} 21... Nd5 {[%clk 0:02:49.8]} 22.
Bf3 {[%clk 0:02:45.9]} 22... Bc5 {[%clk 0:02:44.1]} 23. Bxd5 {[%clk 0:02:38.5]}
23... cxd5 {[%clk 0:02:34.2]} 24. Qa4+ {[%clk 0:02:35]} 24... Qc6 {[%clk
0:02:23.9]} 25. Qg4 {[%clk 0:02:27.6]} 25... O-O {[%clk 0:02:19.3]} 26. Bxh6
{[%clk 0:02:24.6]} 26... Qb5+ {[%clk 0:02:08.2]} 27. Kg1 {[%clk 0:02:21.3]}
27... Bxf2+ {[%clk 0:01:38.7]} 28. Kh2 {[%clk 0:02:13.9]} 28... Qxb2 {[%clk
0:01:21.4]} 29. Rf1 {[%clk 0:02:06]} 29... Kh8 {[%clk 0:01:00.8]} 30. Rxf2
{[%clk 0:02:01.1]} 30... Qe5+ {[%clk 0:00:39.5]} 31. g3 {[%clk 0:01:53.2]} 31...
gxh6 {[%clk 0:00:35.6]} 32. Re2 {[%clk 0:01:49.7]} 32... Qg7 {[%clk 0:00:30.3]}
33. h4 {[%clk 0:01:47.2]} 33... Rac8 {[%clk 0:00:25.7]} 34. Kh3 {[%clk
0:01:44.8]} 34... Rc2 {[%clk 0:00:19.2]} 35. Qxg7+ {[%clk 0:01:40.6]} 35... Kxg7
{[%clk 0:00:16.6]} 36. Rxc2 {[%clk 0:01:39.4]} 36... Rd8 {[%clk 0:00:08.8]} 37.
Rd2 {[%clk 0:01:37.7]} 37... d4 {[%clk 0:00:04.4]} 38. Rxd4 {[%clk 0:01:36.6]}
38... Rxd4 {[%clk 0:00:02.2]} 39. Kg2 {[%clk 0:01:34.1]} 1-0

[Event "Live Chess"]
[Site "Chess.com"]
[Date "2024.06.02"]
[Round "-"]
[White "upoe610"]
[Black "vincents82"]
[Result "0-1"]
[WhiteElo "2190"]
[BlackElo "2013"]
[TimeControl "300"]
[EndTime "0:27:50 PDT"]
[Termination "vincents82 won by resignation"]

1. c4 {[%clk 0:04:57.6]} 1... c6 {[%clk 0:04:57.7]} 2. g3 {[%clk 0:04:55.5]}
2... d5 {[%clk 0:04:55.5]} 3. Nf3 {[%clk 0:04:54.1]} 3... Nf6 {[%clk 0:04:54.3]}
4. Bg2 {[%clk 0:04:52.1]} 4... Bf5 {[%clk 0:04:53.4]} 5. Qb3 {[%clk 0:04:50.5]}
5... Qb6 {[%clk 0:04:51.6]} 6. d3 {[%clk 0:04:49.7]} 6... Qxb3 {[%clk
0:04:49.6]} 7. axb3 {[%clk 0:04:48.3]} 7... e6 {[%clk 0:04:48.9]} 8. Be3 {[%clk
0:04:46.7]} 8... a6 {[%clk 0:04:31.3]} 9. Bd4 {[%clk 0:04:45.3]} 9... Be7 {[%clk
0:04:29.3]} 10. Bc3 {[%clk 0:04:43.6]} 10... O-O {[%clk 0:04:24.9]} 11. O-O
{[%clk 0:04:40.1]} 11... h6 {[%clk 0:04:23.7]} 12. Nbd2 {[%clk 0:04:37.6]} 12...
Nbd7 {[%clk 0:04:21.2]} 13. Nh4 {[%clk 0:04:19.5]} 13... Bh7 {[%clk 0:04:19.9]}
14. Nhf3 {[%clk 0:04:05.7]} 14... c5 {[%clk 0:04:18.3]} 15. Nb1 {[%clk
0:03:42.9]} 15... Rab8 {[%clk 0:04:12.3]} 16. d4 {[%clk 0:03:29.9]} 16... Ne4
{[%clk 0:04:07]} 17. cxd5 {[%clk 0:03:26]} 17... exd5 {[%clk 0:04:05.4]} 18. Ne5
{[%clk 0:03:20.7]} 18... Nxe5 {[%clk 0:04:02]} 19. dxe5 {[%clk 0:03:19.2]} 19...
d4 {[%clk 0:04:01.2]} 20. Ba5 {[%clk 0:03:14.6]} 20... b6 {[%clk 0:03:56.4]} 21.
Be1 {[%clk 0:03:13.4]} 21... a5 {[%clk 0:03:55.5]} 22. Nd2 {[%clk 0:03:12.7]}
22... Nxd2 {[%clk 0:03:47.3]} 23. Bxd2 {[%clk 0:03:12.6]} 23... Rfd8 {[%clk
0:03:41.3]} 24. f4 {[%clk 0:03:11.1]} 24... Bc2 {[%clk 0:03:37.6]} 25. b4 {[%clk
0:03:05.3]} 25... cxb4 {[%clk 0:03:17.6]} 26. Rfc1 {[%clk 0:03:02.7]} 26... b3
{[%clk 0:03:13.9]} 27. Ra4 {[%clk 0:02:56.8]} 27... Rbc8 {[%clk 0:03:08.8]} 28.
Bb7 {[%clk 0:02:52.2]} 28... Rc7 {[%clk 0:03:05.8]} 29. Be4 {[%clk 0:02:49.8]}
29... Rdc8 {[%clk 0:03:03]} 30. Bf3 {[%clk 0:02:46.2]} 30... Bf5 {[%clk
0:02:52]} 31. Rxc7 {[%clk 0:02:43.4]} 31... Rxc7 {[%clk 0:02:50.8]} 32. Kg2
{[%clk 0:02:41.1]} 32... Rc2 {[%clk 0:02:45.1]} 33. Rxd4 {[%clk 0:02:39.5]}
33... Rxb2 {[%clk 0:02:36.4]} 34. g4 {[%clk 0:02:38.8]} 34... Bc8 {[%clk
0:02:23.8]} 35. Bd5 {[%clk 0:02:36.3]} 35... Bc5 {[%clk 0:02:18.8]} 36. Rd3
{[%clk 0:02:28.4]} 36... Ba6 {[%clk 0:02:15.7]} 37. Rxb3 {[%clk 0:02:22]} 37...
Rxd2 {[%clk 0:02:11.6]} 38. Bf3 {[%clk 0:02:20.9]} 38... Bxe2 {[%clk 0:01:59.5]}
0-1